fUST/lending_fUST_20250305
["ID","MTS","AMOUNT","RATE_DAILY","PERIOD"]
[355461717,1741187450391,-500.0,0.00038904,9]
[355461718,1741187450402,-500.0,0.00038904,9]
[355461720,1741187450411,-1084.9,0.00038904,9]
[355461722,1741187450422,-500.0,0.00038904,9]
[355461725,1741187450432,-7521.21,0.00038904,9]
[355461727,1741187450442,-500.0,0.00038904,9]
[355461729,1741187450451,-618.82,0.00038904,9]
[355461731,1741187450461,-500.0,0.00038904,9]
[355461733,1741187450471,-500.0,0.00038904,9]
[355461735,1741187450481,-585.77,0.00038904,9]
[355461737,1741187450491,-500.0,0.00038904,9]
[355461739,1741187450501,-2272.97,0.00038904,9]
[355461741,1741187450511,-500.0,0.00038904,9]
[355461743,1741187450521,-5677.26,0.00038904,9]
[355461745,1741187450530,-529.29,0.00038904,9]
[355461747,1741187450540,-539.57,0.00038904,9]
[355461748,1741187450550,-500.0,0.00038904,9]
[355461749,1741187450560,-500.0,0.00038904,9]
[355461750,1741187450569,-701.36,0.00038904,9]
[355461751,1741187450579,-1395.99,0.00038904,9]
[355461753,1741187450590,-1929.72,0.00038904,9]
[355461755,1741187450600,-1284.38,0.00038904,9]
[355461756,1741187450609,-500.0,0.00038904,9]
[355461757,1741187450620,-650.87,0.00038904,9]
[355461758,1741187450630,-500.0,0.00038904,9]
[355461759,1741187450640,-1611.48,0.00038904,9]
[355461760,1741187450650,-500.0,0.00038904,9]
[355461761,1741187450660,-840.36,0.00038904,9]
[355461762,1741187450670,-1170.43,0.00038904,9]
[355461763,1741187450679,-500.0,0.00038904,9]
[355461764,1741187450689,-500.0,0.00038904,9]
[355461765,1741187450699,-500.0,0.00038904,9]
[355461766,1741187450709,-500.0,0.00038904,9]
[355461767,1741187450719,-500.0,0.00038904,9]
[355461768,1741187450729,-500.0,0.00038904,9]
[355461769,1741187450738,-500.0,0.00038904,9]
[355461770,1741187450748,-500.0,0.00038904,9]
[355461771,1741187450758,-725.8,0.00038904,9]
[355461772,1741187450768,-546.94,0.00038904,9]
[355461773,1741187450778,-637.61,0.00038904,9]
[355461774,1741187450788,-646.13,0.00038904,9]
[355461775,1741187450798,-737.2,0.00038904,9]
[355461776,1741187450808,-500.0,0.00038904,9]
[355461777,1741187450818,-500.0,0.00038904,9]
[355461778,1741187450829,-996.5,0.00038904,9]
[355461779,1741187450840,-814.02,0.00038904,9]
[355461780,1741187450850,-500.0,0.00038904,9]
[355461781,1741187450859,-500.0,0.00038904,9]
[355461782,1741187450869,-500.0,0.00038904,9]
[355461783,1741187450879,-9594.6,0.00038904,9]
[355461784,1741187450889,-455.19407093,0.00038904,9]
[355461785,1741187450899,-527.11008698,0.00038904,9]
[355461786,1741187450909,-500.0,0.00038904,9]
[355461787,1741187451081,-881.98,0.00038904,9]
[355461788,1741187451091,-500.0,0.00038904,9]
[355461789,1741187451101,-500.0,0.00038904,9]
[355461790,1741187451111,-788.92,0.00038904,9]
[355461791,1741187451120,-500.0,0.00038904,9]
[355461792,1741187451130,-500.0,0.00038904,9]
[355461793,1741187451139,-75618.68,0.00038904,7]
[355461794,1741187451149,-500.0,0.00038904,9]
[355461795,1741187451159,-500.0,0.00038904,9]
[355461796,1741187451169,-500.0,0.00038904,9]
[355461797,1741187451181,-1623.5,0.00038904,9]
[355461798,1741187451190,-500.0,0.00038904,9]
[355461799,1741187451200,-500.0,0.00038904,9]
[355461800,1741187451209,-525.65,0.00038904,9]
[355461801,1741187451219,-317.58,0.00038904,9]
[355461802,1741187451229,-500.0,0.00038904,9]
[355461803,1741187451238,-500.0,0.00038904,9]
[355461804,1741187451248,-500.0,0.00038904,9]
[355461805,1741187451257,-2022.1,0.00038904,9]
[355461806,1741187451267,-500.0,0.00038904,9]
[355461807,1741187451276,-500.0,0.00038904,9]
[355461808,1741187451286,-4524.2,0.00038904,9]
[355461809,1741187451296,-500.0,0.00038904,9]
[355461810,1741187451306,-500.0,0.00038904,9]
[355461811,1741187451316,-500.0,0.00038904,9]
[355461812,1741187451326,-643.34,0.00038904,9]
[355461813,1741187451335,-820.66,0.00038904,9]
[355461814,1741187451345,-904.71,0.00038904,9]
[355461815,1741187451355,-500.0,0.00038904,9]
[355461816,1741187451364,-697.33,0.00038904,9]
[355461817,1741187451373,-500.0,0.00038904,9]
[355461818,1741187451383,-5134.24,0.00038904,9]
[355461819,1741187451393,-500.0,0.00038904,9]
[355461820,1741187451402,-500.0,0.00038904,9]
[355461821,1741187451412,-616.65,0.00038904,9]
[355461822,1741187451423,-500.0,0.00038904,9]
[355461823,1741187451433,-500.0,0.00038904,9]
[355461824,1741187451442,-500.0,0.00038904,9]
[355461825,1741187451452,-500.0,0.00038904,9]
[355461826,1741187451461,-500.0,0.00038904,9]
[355461827,1741187451471,-1097.64,0.00038904,9]
[355461828,1741187451482,-500.0,0.00038904,9]
[355461829,1741187451492,-1523.34,0.00038904,9]
[355461830,1741187451501,-500.0,0.00038904,9]
[355461831,1741187451510,-757.05,0.00038904,9]
[355461832,1741187451520,-500.0,0.00038904,9]
[355461833,1741187451529,-500.0,0.00038904,9]
[355461834,1741187451539,-500.0,0.00038904,9]
[355461835,1741187451548,-500.0,0.00038904,9]
[355461836,1741187451558,-1237.39,0.00038904,9]
[355461837,1741187451567,-500.0,0.00038904,9]
[355461838,1741187451577,-500.0,0.00038904,9]
[355461839,1741187451586,-16251.55,0.00038904,9]
[355461840,1741187451595,-500.0,0.00038904,9]
[355461841,1741187451605,-1244.66,0.00038904,9]
[355461842,1741187451614,-500.0,0.00038904,9]
[355461843,1741187451623,-500.0,0.00038904,9]
[355461844,1741187451632,-500.0,0.00038904,9]
[355461845,1741187451642,-500.0,0.00038904,9]
[355461846,1741187451651,-500.0,0.00038904,9]
[355461847,1741187451661,-366.01719648,0.00038904,9]
[355461848,1741187451671,-520.22,0.00038904,9]
[355461849,1741187451681,-1365.03,0.00038904,9]
[355461850,1741187451691,-4689.59,0.00038904,9]
[355461851,1741187451700,-1167.86,0.00038904,9]
[355461852,1741187451710,-500.0,0.00038904,9]
[355461853,1741187451720,-1825.04,0.00038904,9]
[355461854,1741187451729,-500.0,0.00038904,9]
[355461855,1741187451739,-541.15173443,0.00038904,9]
[355461856,1741187451748,-500.0,0.00038904,9]
[355461857,1741187451758,-652.97,0.00038904,9]
[355461858,1741187451767,-500.0,0.00038904,9]
[355461859,1741187451776,-842.5,0.00038904,9]
[355461860,1741187451786,-500.0,0.00038904,9]
[355461861,1741187451795,-1406.81,0.00038904,9]
[355461862,1741187451804,-1000.0,0.00038904,9]
[355461863,1741187451814,-5549.49,0.00038904,9]
[355461864,1741187451824,-6361.75,0.00038904,9]
[355461865,1741187451833,-878.95,0.00038904,9]
[355461866,1741187451843,-500.0,0.00038904,9]
[355461867,1741187451852,-500.0,0.00038904,9]
[355461868,1741187451862,-577.98,0.00038904,9]
[355461869,1741187451871,-176.97466552,0.00038928,2]
[355461870,1741187451881,-2000.0,0.00039,3]
[355461871,1741187451891,-840.36215176,0.00039,120]
[355461872,1741187451900,-1873.37,0.00039041,120]
[355461873,1741187451909,-6849.8537535,0.00039078,2]
[355461874,1741187451919,-1418.37134098,0.00039083,4]
[355461875,1741187451931,-1000.0,0.00039177,120]
[355461876,1741187451940,-500.0,0.00039178,9]
[355461877,1741187451949,-500.0,0.00039178,9]
[355461878,1741187451959,-500.0,0.00039178,9]
[355461879,1741187451968,-375.00008104,0.00039178,9]
[355461880,1741187451981,-500.0,0.00039178,9]
[355461881,1741187451991,-500.0,0.00039178,9]
[355461882,1741187452000,-521.52,0.00039178,9]
[355461883,1741187452009,-500.0,0.00039178,9]
[355461884,1741187452020,-500.0,0.00039178,9]
[355461885,1741187452029,-500.0,0.00039178,120]
[355461886,1741187452048,-500.0,0.00039178,9]
[355461887,1741187452060,-500.0,0.00039178,9]
[355461888,1741187452071,-500.0,0.00039178,9]
[355461889,1741187452082,-500.0,0.00039178,9]
[355461890,1741187452092,-512.61975895,0.00039178,9]
[355461891,1741187452102,-500.0,0.00039178,9]
[355461892,1741187452112,-507.8,0.00039178,9]
[355461893,1741187452122,-500.0,0.00039178,9]
[355461894,1741187452132,-500.0,0.00039178,9]
[355461895,1741187452142,-500.0,0.00039178,9]
[355461896,1741187452152,-548.59,0.00039178,9]
[355461897,1741187452162,-500.0,0.00039178,9]
[355461898,1741187452174,-500.0,0.00039178,9]
[355461899,1741187452184,-500.0,0.00039178,9]
[355461900,1741187452193,-500.0,0.00039178,9]
[355461901,1741187452203,-500.0,0.00039178,9]
[355461902,1741187452213,-500.0,0.00039178,9]
[355461903,1741187452223,-500.0,0.00039178,9]
[355461904,1741187452232,-500.0,0.00039178,9]
[355461905,1741187452242,-500.0,0.00039178,9]
[355461906,1741187452252,-500.0,0.00039178,9]
[355461907,1741187452262,-500.0,0.00039178,9]
[355461908,1741187452272,-151.0,0.00039178,14]
[355461909,1741187452282,-188.07015413,0.00039178,9]
[355461910,1741187452291,-503.26998813,0.00039178,9]
[355461911,1741187452301,-536.96,0.00039178,9]
[355461912,1741187452311,-500.0,0.00039178,9]
[355461913,1741187452321,-500.0,0.00039178,9]
[355461914,1741187452331,-500.0,0.00039178,9]
[355461915,1741187452341,-500.0,0.00039178,9]
[355461916,1741187452351,-500.0,0.00039178,9]
[355461917,1741187452361,-500.0,0.00039178,9]
[355461918,1741187452371,-500.0,0.00039178,9]
[355461919,1741187452381,-500.0,0.00039178,9]
[355461920,1741187452391,-513.65555704,0.00039178,9]
[355461921,1741187452401,-500.0,0.00039178,9]
[355461922,1741187452411,-500.0,0.00039178,9]
[355461923,1741187452422,-500.0,0.00039178,9]
[355461924,1741187452432,-566.76,0.00039178,9]
[355461925,1741187452441,-500.0,0.00039178,9]
[355461926,1741187452451,-500.0,0.00039178,9]
[355461927,1741187452461,-500.0,0.00039178,9]
[355461928,1741187452471,-500.0,0.00039178,9]
[355461929,1741187452482,-500.0,0.00039178,9]
[355461930,1741187452492,-1000.0,0.00039178,90]
[355461931,1741187452501,-500.0,0.00039178,9]
[355461932,1741187452512,-1344.2,0.00039178,9]
[355461933,1741187452521,-500.0,0.00039178,9]
[355461934,1741187452531,-500.0,0.00039178,9]
[355461935,1741187452541,-546.56,0.00039178,9]
[355461936,1741187452552,-500.0,0.00039178,9]
[355461937,1741187452562,-500.0,0.00039178,9]
[355461938,1741187452572,-585.08,0.00039178,9]
[355461939,1741187452581,-500.0,0.00039178,9]
[355461940,1741187452591,-539.85,0.00039178,9]
[355461941,1741187452601,-754.45,0.00039178,9]
[355461942,1741187452612,-550.09,0.00039178,9]
[355461943,1741187452628,-500.0,0.00039178,9]
[355461944,1741187452638,-1012.28,0.00039178,9]
[355461945,1741187452648,-500.0,0.00039178,9]
[355461946,1741187452658,-500.0,0.00039178,9]
[355461947,1741187452668,-500.0,0.00039178,9]
[355461948,1741187452679,-500.0,0.00039178,9]
[355461949,1741187452688,-500.0,0.00039178,9]
[355461950,1741187452698,-1873.37,0.00039178,120]
[355461951,1741187452709,-500.0,0.00039178,9]
[355461952,1741187452719,-500.0,0.00039178,9]
[355461953,1741187452728,-500.0,0.00039178,9]
[355461954,1741187452738,-500.0,0.00039178,9]
[355461955,1741187452747,-738.55,0.00039178,9]
[355461956,1741187452757,-515.34849456,0.00039178,9]
[355461957,1741187452767,-500.0,0.00039178,9]
[355461958,1741187452779,-500.0,0.00039178,9]
[355461959,1741187452789,-500.0,0.00039178,9]
[355461960,1741187452799,-937.75,0.00039178,9]
[355461961,1741187452809,-508.24,0.00039178,9]
[355461962,1741187452819,-500.0,0.00039178,9]
[355461963,1741187452828,-500.0,0.00039178,9]
[355461964,1741187452838,-500.0,0.00039178,9]
[355461965,1741187452848,-500.0,0.00039178,9]
[355461966,1741187452859,-500.0,0.00039178,9]
[355461967,1741187452869,-2318.05,0.00039178,5]
[355461968,1741187452878,-500.0,0.00039178,9]
[355461969,1741187452888,-500.0,0.00039178,9]
[355461970,1741187452898,-500.0,0.00039178,9]
[355461971,1741187452908,-860.37,0.00039178,9]
[355461972,1741187452918,-500.0,0.00039178,9]
[355461973,1741187452928,-500.0,0.00039178,9]
[355461974,1741187452939,-500.0,0.00039178,9]
[355461975,1741187452949,-771.79,0.00039178,9]
[355461976,1741187452959,-500.0,0.00039178,9]
[355461977,1741187452970,-500.0,0.00039178,9]
[355461978,1741187452984,-500.0,0.00039178,9]
[355461979,1741187452994,-500.0,0.00039178,9]
[355461980,1741187453004,-500.0,0.00039178,9]
[355461981,1741187453015,-500.0,0.00039178,9]
[355461982,1741187453025,-523.64,0.00039178,9]
[355461983,1741187453035,-505.82,0.00039178,9]
[355461984,1741187453045,-500.0,0.00039178,9]
[355461985,1741187453057,-500.0,0.00039178,9]
[355461986,1741187453067,-500.0,0.00039178,9]
[355461987,1741187453078,-500.0,0.00039178,120]
[355461988,1741187453088,-500.0,0.00039178,9]
[355461989,1741187453097,-500.0,0.00039178,9]
[355461990,1741187453108,-985.14,0.00039178,9]
[355461991,1741187453118,-500.0,0.00039178,9]
[355461992,1741187453129,-500.0,0.00039178,9]
[355461993,1741187453139,-500.0,0.00039178,9]
[355461994,1741187453148,-500.0,0.00039178,9]
[355461995,1741187453158,-500.0,0.00039178,9]
[355461996,1741187453169,-500.0,0.00039178,9]
[355461997,1741187453181,-500.0,0.00039178,9]
[355461998,1741187453191,-500.0,0.00039178,9]
[355461999,1741187453201,-500.0,0.00039178,9]
[355462000,1741187453211,-500.0,0.00039178,9]
[355462001,1741187453222,-1284.99,0.00039178,9]
[355462002,1741187453232,-657.32,0.00039178,9]
[355462003,1741187453241,-758.14,0.00039178,9]
[355462004,1741187453251,-229.07487815,0.00039178,9]
[355462005,1741187453261,-489.7277911,0.00039178,9]
[355462006,1741187453270,-500.0,0.00039178,9]
[355462007,1741187453280,-1083.31,0.00039178,9]
[355462008,1741187453289,-500.0,0.00039178,9]
[355462009,1741187453299,-500.0,0.00039178,9]
[355462010,1741187453309,-500.0,0.00039178,9]
[355462011,1741187453318,-1106.01,0.00039178,9]
[355462012,1741187453328,-500.0,0.00039178,9]
[355462013,1741187453338,-500.0,0.00039178,9]
[355462014,1741187453347,-500.0,0.00039178,9]
[355462015,1741187453357,-1928.03,0.00039178,9]
[355462016,1741187453367,-423.2706387,0.00039178,9]
[355462017,1741187453377,-500.0,0.00039178,9]
[355462018,1741187453387,-500.0,0.00039178,9]
[355462019,1741187453397,-817.64,0.00039178,9]
[355462020,1741187453406,-531.6,0.00039178,9]
[355462021,1741187453415,-500.0,0.00039178,9]
[355462022,1741187453427,-500.0,0.00039178,9]
[355462023,1741187453436,-3986.96,0.00039178,9]
[355462024,1741187453446,-500.0,0.00039178,9]
[355462025,1741187453455,-310.50240241,0.00039178,9]
[355462026,1741187453465,-500.0,0.00039178,9]
[355462027,1741187453475,-500.0,0.00039178,9]
[355462028,1741187453485,-921.02,0.00039178,9]
[355462029,1741187453495,-1245.88,0.00039178,9]
[355462030,1741187453505,-500.0,0.00039178,9]
[355462031,1741187453514,-502.82,0.00039178,9]
[355462032,1741187453523,-500.0,0.00039178,9]
[355462033,1741187453532,-500.0,0.00039178,9]
[355462034,1741187453542,-500.0,0.00039178,9]
[355462035,1741187453551,-500.0,0.00039178,9]
[355462036,1741187453561,-555.97345238,0.00039178,9]
[355462037,1741187453571,-1084.9,0.00039178,9]
[355462038,1741187453583,-500.0,0.00039178,9]
[355462039,1741187453593,-7521.21,0.00039178,9]
[355462040,1741187453602,-375.57453856,0.00039178,9]
[355462041,1741187453612,-618.82,0.00039178,9]
[355462042,1741187453621,-500.0,0.00039178,9]
[355462043,1741187453631,-500.0,0.00039178,9]
[355462044,1741187453640,-585.77,0.00039178,9]
[355462045,1741187453649,-500.0,0.00039178,9]
[355462046,1741187453659,-2272.97,0.00039178,9]
[355462047,1741187453670,-500.0,0.00039178,9]
[355462048,1741187453682,-5677.26,0.00039178,9]
[355462049,1741187453692,-529.29,0.00039178,9]
[355462050,1741187453703,-539.57,0.00039178,9]
[355462051,1741187453713,-500.0,0.00039178,9]
[355462052,1741187453723,-500.0,0.00039178,9]
[355462053,1741187453734,-701.36,0.00039178,9]
[355462054,1741187453743,-1395.99,0.00039178,9]
[355462055,1741187453752,-1929.72,0.00039178,9]
[355462056,1741187453762,-1284.38,0.00039178,9]
[355462057,1741187453772,-500.0,0.00039178,9]
[355462058,1741187453782,-650.87,0.00039178,9]
[355462059,1741187453791,-500.0,0.00039178,9]
[355462060,1741187453801,-1611.48,0.00039178,9]
[355462061,1741187453811,-500.0,0.00039178,9]
[355462062,1741187453820,-840.36,0.00039178,9]
[355462063,1741187453830,-1170.43,0.00039178,9]
[355462064,1741187453839,-500.0,0.00039178,9]
[355462065,1741187453848,-500.0,0.00039178,9]
[355462066,1741187453858,-500.0,0.00039178,9]
[355462067,1741187453868,-509.99393898,0.00039178,9]
[355462068,1741187453878,-500.0,0.00039178,9]
[355462069,1741187453888,-163.77491079,0.00039178,9]
[355462070,1741187453898,-500.0,0.00039178,9]
[355462071,1741187453907,-500.0,0.00039178,9]
[355462072,1741187453916,-725.8,0.00039178,9]
[355462073,1741187453928,-546.94,0.00039178,9]
[355462074,1741187453938,-637.61,0.00039178,9]
[355462075,1741187453947,-646.13,0.00039178,9]
[355462076,1741187453956,-737.2,0.00039178,9]
[355462077,1741187453966,-500.0,0.00039178,9]
[355462078,1741187453978,-500.0,0.00039178,9]
[355462079,1741187453988,-996.5,0.00039178,9]
[355462080,1741187453997,-814.02,0.00039178,9]
[355462081,1741187454007,-500.0,0.00039178,9]
[355462082,1741187454018,-500.0,0.00039178,9]
[355462083,1741187454028,-500.0,0.00039178,9]
[355462084,1741187454038,-9594.6,0.00039178,9]
[355462085,1741187454048,-500.0,0.00039178,9]
[355462086,1741187454058,-881.98,0.00039178,9]
[355462087,1741187454068,-500.0,0.00039178,9]
[355462088,1741187454078,-500.0,0.00039178,9]
[355462089,1741187454088,-788.92,0.00039178,9]
[355462090,1741187454097,-500.0,0.00039178,9]
[355462091,1741187454107,-75618.68,0.00039178,7]
[355462092,1741187454116,-500.0,0.00039178,9]
[355462093,1741187454126,-500.0,0.00039178,9]
[355462094,1741187454136,-500.0,0.00039178,9]
[355462095,1741187454146,-500.0,0.00039178,9]
[355462096,1741187454155,-1623.5,0.00039178,9]
[355462097,1741187454165,-500.0,0.00039178,9]
[355462098,1741187454177,-500.0,0.00039178,9]
[355462099,1741187454186,-525.65,0.00039178,9]
[355462100,1741187454195,-168.45260612,0.00039178,9]
[355462101,1741187454205,-500.0,0.00039178,9]
[355462102,1741187454214,-500.0,0.00039178,9]
[355462103,1741187454224,-2022.1,0.00039178,9]
[355462104,1741187454234,-500.0,0.00039178,9]
[355462105,1741187454244,-500.0,0.00039178,9]
[355462106,1741187454253,-4524.2,0.00039178,9]
[355462107,1741187454262,-500.0,0.00039178,9]
[355462108,1741187454272,-500.0,0.00039178,9]
[355462109,1741187454282,-500.0,0.00039178,9]
[355462110,1741187454291,-643.34,0.00039178,9]
[355462111,1741187454301,-820.66,0.00039178,9]
[355462112,1741187454311,-904.71,0.00039178,9]
[355462113,1741187454320,-500.0,0.00039178,9]
[355462114,1741187454329,-697.33,0.00039178,9]
[355462115,1741187454339,-500.0,0.00039178,9]
[355462116,1741187454348,-5134.24,0.00039178,9]
[355462117,1741187454358,-500.0,0.00039178,9]
[355462118,1741187454368,-500.0,0.00039178,9]
[355462119,1741187454377,-616.65,0.00039178,9]
[355462120,1741187454387,-500.0,0.00039178,9]
[355462121,1741187454396,-500.0,0.00039178,9]
[355462122,1741187454405,-500.0,0.00039178,9]
[355462123,1741187454414,-500.0,0.00039178,9]
[355462124,1741187454425,-500.0,0.00039178,9]
[355462125,1741187454435,-1097.64,0.00039178,9]
[355462126,1741187454445,-500.0,0.00039178,9]
[355462127,1741187454454,-1523.34,0.00039178,9]
[355462128,1741187454464,-500.0,0.00039178,9]
[355462129,1741187454474,-757.05,0.00039178,9]
[355462130,1741187454484,-500.0,0.00039178,9]
[355462131,1741187454493,-500.0,0.00039178,9]
[355462132,1741187454503,-500.0,0.00039178,9]
[355462133,1741187454684,-500.0,0.00039178,9]
[355462134,1741187454695,-1237.39,0.00039178,9]
[355462135,1741187454706,-500.0,0.00039178,9]
[355462136,1741187454716,-500.0,0.00039178,9]
[355462137,1741187454726,-16251.55,0.00039178,9]
[355462138,1741187454737,-500.0,0.00039178,9]
[355462139,1741187454747,-1244.66,0.00039178,9]
[355462140,1741187454757,-500.0,0.00039178,9]
[355462141,1741187454767,-500.0,0.00039178,9]
[355462142,1741187454776,-500.0,0.00039178,9]
[355462143,1741187454786,-500.0,0.00039178,9]
[355462144,1741187454796,-500.0,0.00039178,9]
[355462145,1741187454807,-520.22,0.00039178,9]
[355462146,1741187454817,-1365.03,0.00039178,9]
[355462147,1741187454828,-4689.59,0.00039178,9]
[355462148,1741187454838,-1167.86,0.00039178,9]
[355462149,1741187454848,-500.0,0.00039178,9]
[355462150,1741187454858,-1825.04,0.00039178,9]
[355462151,1741187454867,-500.0,0.00039178,9]
[355462152,1741187454877,-500.0,0.00039178,9]
[355462153,1741187454887,-652.97,0.00039178,9]
[355462154,1741187454898,-500.0,0.00039178,9]
[355462155,1741187454908,-842.5,0.00039178,9]
[355462156,1741187454918,-500.0,0.00039178,9]
[355462157,1741187454930,-1406.81,0.00039178,9]
[355462158,1741187454939,-1000.0,0.00039178,9]
[355462159,1741187454949,-5549.49,0.00039178,9]
[355462160,1741187454959,-6361.75,0.00039178,9]
[355462161,1741187454970,-878.95,0.00039178,9]
[355462162,1741187454986,-500.0,0.00039178,9]
[355462163,1741187454997,-500.0,0.00039178,9]
[355462164,1741187455006,-577.98,0.00039178,9]
[355462165,1741187455016,-590.69421,0.000392,120]
[355462166,1741187455027,-1873.37,0.00039315,120]
[355462167,1741187455037,-307.04,0.000394,7]
[355462168,1741187455047,-3775.72,0.000394,30]
[355462169,1741187455061,-416.66666667,0.000394,30]
[355462170,1741187455070,-1042.79,0.00039451,120]
[355462171,1741187455079,-500.0,0.00039452,9]
[355462172,1741187455089,-500.0,0.00039452,9]
[355462173,1741187455099,-500.0,0.00039452,9]
[355462174,1741187455109,-500.0,0.00039452,9]
[355462175,1741187455119,-521.52,0.00039452,9]
[355462176,1741187455129,-500.0,0.00039452,9]
[355462177,1741187455138,-395.55146878,0.00039452,9]
[355462178,1741187455148,-500.0,0.00039452,120]
[355462179,1741187455158,-500.0,0.00039452,9]
[355462180,1741187455168,-500.0,0.00039452,9]
[355462181,1741187455178,-500.0,0.00039452,9]
[355462182,1741187455188,-500.0,0.00039452,9]
[355462183,1741187455198,-258.3986419,0.00039452,9]
[355462184,1741187455208,-507.8,0.00039452,9]
[355462185,1741187455217,-500.0,0.00039452,9]
[355462186,1741187455227,-500.0,0.00039452,9]
[355462187,1741187455237,-500.0,0.00039452,9]
[355462188,1741187455246,-548.59,0.00039452,9]
[355462189,1741187455256,-500.0,0.00039452,9]
[355462190,1741187455266,-500.0,0.00039452,9]
[355462191,1741187455275,-500.0,0.00039452,9]
[355462192,1741187455285,-500.0,0.00039452,9]
[355462193,1741187455295,-500.0,0.00039452,9]
[355462194,1741187455305,-500.0,0.00039452,9]
[355462195,1741187455314,-500.0,0.00039452,9]
[355462196,1741187455324,-500.0,0.00039452,9]
[355462197,1741187455334,-518.83270244,0.00039452,9]
[355462198,1741187455343,-500.0,0.00039452,9]
[355462199,1741187455353,-500.0,0.00039452,9]
[355462200,1741187455363,-536.96,0.00039452,9]
[355462201,1741187455373,-500.0,0.00039452,9]
[355462202,1741187455383,-500.0,0.00039452,9]
[355462203,1741187455393,-500.0,0.00039452,9]
[355462204,1741187455403,-500.0,0.00039452,9]
[355462205,1741187455412,-500.0,0.00039452,9]
[355462206,1741187455421,-500.0,0.00039452,9]
[355462207,1741187455432,-500.0,0.00039452,9]
[355462208,1741187455442,-575.0655614,0.00039452,9]
[355462209,1741187455451,-500.0,0.00039452,9]
[355462210,1741187455461,-500.0,0.00039452,9]
[355462211,1741187455471,-500.0,0.00039452,9]
[355462212,1741187455480,-566.76,0.00039452,9]
[355462213,1741187455491,-500.0,0.00039452,9]
[355462214,1741187455500,-500.0,0.00039452,9]
[355462215,1741187455510,-500.0,0.00039452,9]
[355462216,1741187455520,-500.0,0.00039452,9]
[355462217,1741187455529,-500.0,0.00039452,9]
[355462218,1741187455539,-216.80986092,0.00039452,90]
[355462219,1741187455555,-500.0,0.00039452,9]
[355462220,1741187455565,-1344.2,0.00039452,9]
[355462221,1741187455574,-500.0,0.00039452,9]
[355462222,1741187455583,-500.0,0.00039452,9]
[355462223,1741187455593,-546.56,0.00039452,9]
[355462224,1741187455602,-500.0,0.00039452,9]
[355462225,1741187455611,-500.0,0.00039452,9]
[355462226,1741187455620,-585.08,0.00039452,9]
[355462227,1741187455629,-500.0,0.00039452,9]
[355462228,1741187455639,-539.85,0.00039452,9]
[355462229,1741187455648,-754.45,0.00039452,9]
[355462230,1741187455657,-550.09,0.00039452,9]
[355462231,1741187455667,-500.0,0.00039452,9]
[355462232,1741187455679,-1012.28,0.00039452,9]
[355462233,1741187455689,-500.0,0.00039452,9]